Cogmind - Beta 13 @@@ ROGUE MODE // 2024.06.16 @ 00:44:10 Player: Dendrocnid Result: Destroyed by D-53 Grenadier with Mini Grenade Launcher Performance ------------- Evolutions (0) 0 Regions Visited (2) 400 Robots Destroyed (13) 65 Value Destroyed (351) 351 Prototype IDs (0) 0 Alien Tech Used (0) 0 Bonus (0) 0 TOTAL SCORE: 816 Bonus ------- None Cogmind --------- Core Integrity 0/250 Matter 237/300 Energy 140/140 System Corruption 0% Temperature Warm (116) Movement Rolling (105) Ox1 Location -10/Mines Parts ------- > --- POWER (1) -------- Light Deuterium Engine > --- PROPULSION (2) --- Wheel Compact Wheel > --- UTILITY (2) ------ Large Storage Unit > --- WEAPON (2) ------- Medium Laser > --- INVENTORY (15) --- Ion Engine Light Nuclear Core Wheel Wheel Wheel Cooling System Large Storage Unit High-powered Shotgun Heavy Flail Peak State ------------ > --- POWER ------------ Light Nuclear Core > --- PROPULSION ------- Wheel Compact Wheel > --- UTILITY ---------- Large Storage Unit > --- WEAPON ----------- Medium Laser Improved Light Cannon > --- INVENTORY -------- Ion Engine Wheel Wheel Wheel Cooling System Large Storage Unit High-powered Shotgun [Rating: 10] Favorites ----------- Power Light Ion Engine Engine Light Ion Engine Power Core Light Nuclear Core Propulsion Compact Wheel Wheel Compact Wheel Utility Seismic Detector Device Seismic Detector Storage Small Storage Unit Weapon Improved Light Cannon Energy Gun Medium Laser Ballistic Gun Assault Rifle Ballistic Cannon Improved Light Cannon Build | -11 -10 -10 ------- Run | Yrd Mat Min Slots Evolved . | . . . Power . | . . . Propulsion . | . . . Utility . | . . . Weapon . | . . . Parts Attached 15 | 8 2 5 Power 3 | 1 . 2 Engine 2 | 1 . 1 Core 1 | . . 1 Reactor . | . . . Propulsion 3 | 2 . 1 Treads . | . . . Leg . | . . . Wheel 3 | 2 . 1 Hover . | . . . Flight . | . . . Utility 4 | 3 1 . Device 2 | 2 . . Storage 2 | 1 1 . Processor . | . . . Hackware . | . . . Protection . | . . . Artifact . | . . . Weapon 5 | 2 1 2 Energy Gun 2 | 1 . 1 Energy Cannon . | . . . Ballistic Gun 1 | 1 . . Ballistic Cannon 2 | . 1 1 Launcher . | . . . Special Weapon . | . . . Impact Weapon . | . . . Slashing Weapon . | . . . Piercing Weapon . | . . . Special Melee Weapon . | . . . Unidentified Prototypes . | . . . Parts Lost 6 | . . 6 Power 1 | . . 1 Propulsion 1 | . . 1 Utility 1 | . . 1 Weapon 3 | . . 3 Highest Loss Streak 5 | . . 5 To Critical Strikes . | . . . Average Slot Usage (%) 95 | . 100 80 Engine 12 | . 14 6 Core 1 | . . 4 Wheel 27 | . 28 25 Device 11 | . 14 1 Storage 14 | . 14 14 Energy Gun 4 | . 1 12 Ballistic Gun 11 | . 14 1 Ballistic Cannon 12 | . 12 12 Naked Turns . | . . . Heaviest Build 31 | 13 30 31 Greatest Support 26 | 26 26 26 Greatest Overweight (x) 2 | 2 1 1 Average Overweight (x) . | . . 1 Largest Inventory Capacity 15 | 8 15 15 Average Capacity 11 | 7 10 15 Most Carried 9 | 7 9 9 Average Carried 7 | 4 8 7 Final Capacity 15 | 8 15 15 Final Carried 9 | 7 9 9 Class Distribution -------------------- 100% | Mutant Dominant Class ---------------- Mutant | -10/Materials Mutant | -10/Mines Resources | -11 -10 -10 ----------- Run | Yrd Mat Min Matter Collected 498 | 198 160 140 Remotely . | . . . Salvage Created 253 | 37 95 121 Parts 17 | 5 8 4 Haulers Intercepted . | . . . Recyclers Shooed 1 | 1 . . Parts Field Recycled . | . . . Retrieved Matter . | . . . Parts Self-Destructed . | . . . Prevented . | . . . Kills | -11 -10 -10 ------- Run | Yrd Mat Min Combat Hostiles Destroyed 10 | . 5 5 Guns 4 | . 2 2 Cannons 6 | . 3 3 Classes Destroyed 5 | 1 3 1 Worker 1 | . 1 . Tunneler 2 | 2 . . Swarmer 3 | . 3 . Grunt 6 | . 2 4 Demolisher 1 | . . 1 Best Kill Streak 3 | 2 3 2 Combat Bots Only 3 | . 3 2 Max Kills in Single Turn 1 | 1 1 1 Gunslinging . | . . . Exploded . | . . . Melee . | . . . Uniques/NPCs Destroyed . | . . . Combat | -11 -10 -10 -------- Run | Yrd Mat Min Hostile Shots Fired 77 | . 28 49 Missed 13 | . 8 5 Damage Taken 960 | . 185 775 Core 289 | . 57 232 Absorbed by Shields . | . . . Core Remaining (%) 100 | 100 . . Volleys Fired 47 | 5 19 23 Largest 2 | 2 2 2 Hottest 89 | 70 59 89 Shots Fired 89 | 10 35 44 Gun 49 | 10 16 23 Cannon 40 | . 19 21 Launcher . | . . . Special . | . . . Kinetic 67 | 5 35 27 Thermal 22 | 5 . 17 Explosive . | . . . Electromagnetic . | . . . Robot Hit Streak 6 | 3 6 6 Robot Miss Streak 4 | 2 3 4 Penetration Max . | . . . Secondary Targets . | . . . Shots Hit Robots 50 | 5 17 28 Core Hits 23 | 3 9 11 Critical Kills . | . . . Critical Parts Destroyed . | . . . Critical Strikes 2 | . . 2 Blast 2 | . . 2 Melee Attacks . | . . . Impact . | . . . Slashing . | . . . Piercing . | . . . Sneak Attacks . | . . . Combat Hostiles . | . . . Follow-up Attacks . | . . . Damage Inflicted 856 | 60 292 504 Guns 374 | 60 105 209 Cannons 482 | . 187 295 Explosions . | . . . Melee . | . . . Ramming . | . . . Kinetic 695 | 36 292 367 Thermal 161 | 24 . 137 Explosive . | . . . Electromagnetic . | . . . Impact . | . . . Slashing . | . . . Piercing . | . . . Highest Corruption . | . . . Average Corruption . | . . . Corruption Purged . | . . . Corruption Blocked . | . . . Overload Shots . | . . . Overflow Damage 5 | . 4 1 Projectiles 5 | . 4 1 Explosions . | . . . Melee . | . . . Knockbacks 2 | . 2 . Impact . | . . . Kinetic 2 | . 2 . Secondary . | . . . Self-Inflicted Damage . | . . . Shots . | . . . Rammed . | . . . Targets Rammed . | . . . Kicked . | . . . Crushed . | . . . Highest Temperature 220 | 27 29 220 Average Temperature 70 | 12 19 92 Received Heat Transfer 362 | . 54 308 Siege Activations . | . . . Robots Corrupted . | . . . Combat Hostiles . | . . . Parts Fried . | . . . Impact Corruptions . | . . . Robots Melted . | . . . Combat Hostiles . | . . . Parts Melted . | . . . Heat Transferred 481 | 74 . 407 Parts Sabotaged . | . . . Parts Stolen . | . . . Parts Stripped . | . . . Power Chain Reactions . | . . . Alert | -11 -10 -10 ------- Run | Yrd Mat Min Peak Influence 179 | 10 179 135 Initial 18 | . 6 18 Average 39 | 2 33 75 Maximum Alert Level . | . . . Low Security (%) 100 | 100 100 100 Level 1 . | . . . Level 2 . | . . . Level 3 . | . . . Level 4 . | . . . Level 5 . | . . . High Security . | . . . Max Security . | . . . Squads Dispatched . | . . . Investigation . | . . . Extermination . | . . . Reinforcement . | . . . Assault . | . . . Garrison . | . . . Intercept . | . . . Searches Triggered . | . . . Construction Impeded . | . . . Haulers Reinforced . | . . . Active Scanning Responses . | . . . Cargo Convoy Interrupts . | . . . Stealth | -11 -10 -10 --------- Run | Yrd Mat Min Distress Signals . | . . . Communications Jammed . | . . . Distress Signals . | . . . Times Spotted 25 | . 12 13 Peak Tracking Total 7 | . 4 7 Tactical Retreats 1 | . 1 . Traps | -11 -10 -10 ------- Run | Yrd Mat Min Traps Triggered 1 | . . 1 Indirectly . | . . . Trap Hack Attempts . | . . . Triggered . | . . . Disarmed . | . . . Reprogrammed . | . . . Reused . | . . . Traps Extracted . | . . . Installed . | . . . Triggered . | . . . Machines | -11 -10 -10 ---------- Run | Yrd Mat Min Machines Disabled 1 | . . 1 Max in Single Turn 1 | . . 1 Machines Repaired . | . . . Machines Dismantled . | . . . Machines Sabotaged . | . . . Overloaded Fab Kills . | . . . Hacking | -11 -10 -10 --------- Run | Yrd Mat Min Machines Accessed 2 | . 1 1 Terminals 1 | . 1 . Fabricators . | . . . Repair Stations . | . . . Recycling Units . | . . . Scanalyzers . | . . . Garrison Access . | . . . Total Hacks 3 | . 2 1 Successful 1 | . . 1 Failed 2 | . 2 . Catastrophic . | . . . Database Lockouts . | . . . Manual . | . . . Terminals 2 | . 2 . Fabricators . | . . . Repair Stations . | . . . Recycling Units . | . . . Scanalyzers . | . . . Garrison Access . | . . . Terminal Hacks 1 | . . 1 Open Door 1 | . . 1 Fabricator Hacks . | . . . Repair Station Hacks . | . . . Recycling Unit Hacks . | . . . Scanalyzer . | . . . Garrison Access Hacks . | . . . Unauthorized Hacks . | . . . Terminals . | . . . Fabricators . | . . . Repair Stations . | . . . Recycling Units . | . . . Scanalyzers . | . . . Garrison Access . | . . . Data Cores Recovered . | . . . Used . | . . . Hacking Detections 1 | . 1 . Full Trace Events . | . . . Feedback Events . | . . . Feedback Blocked . | . . . Robot Schematics Acquired . | . . . Robots Built . | . . . Authchips . | . . . Time . | . . . Total Robot Build Rating . | . . . Part Schematics Acquired . | . . . Parts Built . | . . . Authchips . | . . . Time . | . . . Total Part Build Rating . | . . . Parts Repaired . | . . . Time . | . . . Parts Recycled . | . . . Recycled Matter . | . . . Retrieved Matter . | . . . Retrieved Components . | . . . Parts Scanalyzed . | . . . Part Schematics Acquired . | . . . Parts Damaged . | . . . Bothacking | -11 -10 -10 ------------ Run | Yrd Mat Min Used RIF Installer . | . . . Robots Hacked . | . . . Non-combat . | . . . Combat . | . . . Robot Hacks Applied . | . . . Relay Couplers Released . | . . . Fabnet Peak Effective % . | . . . Robots Rewired . | . . . Allies Hacked . | . . . Hacks Repelled . | . . . Allies | -11 -10 -10 -------- Run | Yrd Mat Min Total Allies . | . . . Largest Group . | . . . Highest-Rated Group . | . . . Highest-Rated Ally . | . . . Total Orders . | . . . Ally Attacks . | . . . Total Damage . | . . . Kills . | . . . Allies Corrupted . | . . . Allies Melted . | . . . Intel | -11 -10 -10 ------- Run | Yrd Mat Min Robot Analysis Total . | . . . Derelict Logs Recovered . | . . . Drone Launches . | . . . Drone Recoveries . | . . . Exploration | -11 -10 -10 ------------- Run | Yrd Mat Min Turns Passed 1069 | 84 763 222 Spaces Moved 861 | 57 671 133 Core 6 | 6 . . Treads . | . . . Legs . | . . . Wheels 855 | 51 671 133 Hover . | . . . Flight . | . . . Fastest Speed 50 | 50 90 105 Average Speed 96 | 87 95 105 Slowest Speed 150 | 150 105 115 Overloaded Moves . | . . . Propulsion Burnouts . | . . . Robots Hopped . | . . . Cave-ins Triggered . | . . . Exploration Rate (%) 31 | 4 67 23 Regions Visited 2 Branch Regions 1 Pre-discovered Areas . | . . . Known Exits Taken . | . . . Unknown Exits Taken 2 | 1 1 . Scrap Searched . | . . . Spaces Dug 1 | . 1 . Terrain Destroyed 4 | . 4 . Melee . | . . . Projectile 4 | . 4 . AOE . | . . . Terrain Rammed . | . . . Walls Destroyed . | . . . Machines Disabled . | . . . Actions | -11 -10 -10 --------- Run | Yrd Mat Min Total 1009 | 76 763 170 Wait 62 | . 55 7 Move 859 | 56 670 133 Hop . | . . . Pick Up 18 | 7 9 2 Fast Attach 8 | 7 . 1 Attach 3 | . . 3 Detach . | . . . Swap 4 | 1 2 1 Drop 8 | . 8 . Fire 47 | 5 19 23 Melee . | . . . Ram . | . . . Kick . | . . . Crush . | . . . Escape Stasis . | . . . Rewire . | . . . Trap . | . . . Miscellaneous . | . . . Route ------- -11/Scrapyard -10/Materials (discovered 3 exits: [*Mat x2] / *Min) -10/Mines History --------- Turn | Location | Event 19 | -11/Scrapyard | Discovered new exit (range 16) 85 | -11/Scrapyard | Entered Materials 145 | -10/Materials | Discovered new exit (range 9) 225 | -10/Materials | Discovered new exit (range 16) 313 | -10/Materials | Build established: Mutant 640 | -10/Materials | Discovered new exit (range 11) 848 | -10/Materials | Entered Mines 907 | -10/Mines | Lost 5 parts (1p1n1u2w) 928 | -10/Mines | Core integrity fell below 50% 970 | -10/Mines | Met a Derelict who couldn't figure out how to use a Trap Extractor 1042 | -10/Mines | Assembled infested the area 1047 | -10/Mines | Assisted by a Guerilla fighting off Assembled 1065 | -10/Mines | Core integrity fell below 20% 1070 | -10/Mines | Destroyed by D-53 Grenadier with Mini Grenade Launcher Last Messages --------------- 01060_ as-39590 destroyed. 01060_ HV Slug penetrates Wall. 01061_ C-30 ARC bursts open, deploying its payload. 01061_ D-53 Grenadier unfolds itself. 01061_ 3N-IWB(h) destroyed. 01063_ as-73185 destroyed. 01064_ as-90931 destroyed. 01064_ as-08122 destroyed. 01064_ U-05 Engineer builds a Wall. 01065_ K-01 Serf collects debris. 01066_ The unstable cave ceiling collapses. 01066_ D-53 Grenadier Mni. Grenade Launcher blasted off. 01066_ D-53 Grenadier destroyed. 01066_ K-01 Serf collects debris. 01068_ Imp. Light Cannon destroyed. 01068_ as-66845 destroyed. 01068_ U-05 Engineer builds a Wall. 01069_ Knocked back. Map ----- +----------------------------------------------------+ | | | | | | | | | | | | | | | ?????????????????????????????????????????????????? | | ?????????????????????????????????????????????????? | | ?????????????????????????????????????????????????? | | ?????????????????????#####???????###############?? | | ????????????????????## ######### ##"" " #?? | | ???????????????????## #! == #?? | | ???????????????????# ## ! #??? | | ???????????????????## ###### ## ##?? | | ???????????######???# ##????## ### ##? | | ???????????# #???# ##??????# # X ## | | ???????????## ##???# ##???????## # | | ??????????## ##?## #?????????# | | ??????????# ### k #?????????# ## | | ??????????# ##?????????## ####? | | ??????????## ###?????????## ##???? | | ???????????## ## # ####???????#### ####### | | ????????????###### #??????????##### | | ?????????????????# ## ##?????????????# """ | | ?????????????????# %## @ #?????????????# """ | | ????????????????## u d = ##?????????????# "" | | ????????????????# # ]aa #?????????????# | | ????????????????# # % ##?????????????# | | ????????????? ## tk ?????????????# | | ????????????#### #### % ###????????????###### | | ???????????????# #??###%###???????????????????? | | ??????????????? ????? #?????????????????????? | | ??????????????## ????? ?????????????????????? | | ???????????????## ????#;?????????????????????? | | ????????????????## ????? ?????????????????????? | | ?????????????????## ????#?????????????????????? | | ???????????????????# #??????????????????????????? | | ????????????????????###??????????????????????????? | | ?????????????????????????????????????????????????? | | ?????????????????????????????????????????????????? | | ?????????????????????????????????????????????????? | | ?????????????????????????????????????????????????? | | ?????????????????????????????????????????????????? | | ?????????????????????????????????????????????????? | | ?????????????????????????????????????????????????? | | ?????????????????????????????????????????????????? | | ?????????????????????????????????????????????????? | | ?????????????????????????????????????????????????? | | ?????????????????????????????????????????????????? | +----------------------------------------------------+ Best States ------------- Heat Dissipation 25 Energy Generation 14 Energy Capacity 160 Matter Stores 278 Matter Capacity 300 Sight Range 16 Terrain Scan Range 16 Terrain Scan Density 10 Evasion (%) 42 Item Schematics ----------------- None Robot Schematics ------------------ None Fabricated ------------ Nothing Alien Tech Used ----------------- None Achievements -------------- None Challenges ------------ None Game ------ Seed TargetingMomentumBlade Manual? 0 Play Time 00:11:13 Cumulative 145.8 hours Start 2024.06.16 @ 00:35:10 End 2024.06.16 @ 00:44:10 Sessions 1 Manual Loads 0 Difficulty Rogue Special Mode None Game No. 226 Rogue 226 Adventurer 0 Explorer 0 Win Type - Total 1 Types 1/0/0/0/0/0/0/0/0 Lore% 30 Gallery% 51 Achievement% 44 Wizard Run 0 Options --------- Layout 2 ASCII 0 Keyboard 0 Movement Mouse Keybinds 0 Fullscreen 1 Font 24/Smallcaps Map View 50x44 Zoom Use 0% Tactical HUD 1 Map Filters NONE Filters NONE Steam 1 RUN: bb503d64-6f7d-4df8-bf96-5297d08ef803